[Event "Titled Tuesday Blitz March 29 Early 2022"]
[White "Kouskoutis, Georgios-Alexandros"]
[Black "Vasquez Schroeder, Rodrigo"]
[WhiteFideId "4234049"]
[BlackFideId "3400042"]
[WhiteElo "2511"]
[BlackElo "2898"]
[Result "0-1"]
[Round "05"]
[TimeControl "180+1"]
[Date "2022.03.30"]
[WhiteClock "0:00:01"]
[BlackClock "0:00:59"]

1. e4 {[%clk 0:03:00]}  c5 {[%clk 0:03:00]} 2. Nf3 {[%clk 0:03:01]}  d6 {[%clk 0:03:00]} 3. Bb5+ {[%clk 0:02:59]}  Nc6 {[%clk 0:02:58]} 4. O-O {[%clk 0:02:59]}  Bd7 {[%clk 0:02:58]} 5. Re1 {[%clk 0:02:59]}  Nf6 {[%clk 0:02:59]} 6. d3 {[%clk 0:02:39]}  a6 {[%clk 0:02:46]} 7. Bxc6 {[%clk 0:02:27]}  Bxc6 {[%clk 0:02:45]} 8. c4 {[%clk 0:02:23]}  e6 {[%clk 0:02:44]} 9. b3 {[%clk 0:02:22]}  b6 {[%clk 0:02:42]} 10. Bb2 {[%clk 0:02:22]}  Be7 {[%clk 0:02:42]} 11. Nc3 {[%clk 0:02:15]}  O-O {[%clk 0:02:41]} 12. d4 {[%clk 0:02:13]}  cxd4 {[%clk 0:02:41]} 13. Nxd4 {[%clk 0:02:14]}  Bb7 {[%clk 0:02:41]} 14. Qe2 {[%clk 0:02:02]}  Qc7 {[%clk 0:02:41]} 15. Rad1 {[%clk 0:02:02]}  Rac8 {[%clk 0:02:38]} 16. h3 {[%clk 0:01:52]}  Rfd8 {[%clk 0:02:36]} 17. f4 {[%clk 0:01:35]}  Nd7 {[%clk 0:02:30]} 18. f5 {[%clk 0:01:29]}  Nf8 {[%clk 0:02:24]} 19. Qg4 {[%clk 0:01:14]}  e5 {[%clk 0:02:21]} 20. Nde2 {[%clk 0:01:02]}  Nd7 {[%clk 0:02:21]} 21. Ng3 {[%clk 0:01:01]}  Nf6 {[%clk 0:02:20]} 22. Qf3 {[%clk 0:01:02]}  g6 {[%clk 0:02:21]} 23. Bc1 {[%clk 0:00:47]}  b5 {[%clk 0:02:19]} 24. Nd5 {[%clk 0:00:47]}  Bxd5 {[%clk 0:02:14]} 25. cxd5 {[%clk 0:00:48]}  Qc3 {[%clk 0:02:09]} 26. Rf1 {[%clk 0:00:29]}  Qxf3 {[%clk 0:02:03]} 27. Rxf3 {[%clk 0:00:30]}  Kg7 {[%clk 0:02:01]} 28. Rdf1 {[%clk 0:00:27]}  Rf8 {[%clk 0:02:01]} 29. Ba3 {[%clk 0:00:22]}  a5 {[%clk 0:01:57]} 30. R3f2 {[%clk 0:00:11]}  b4 {[%clk 0:01:55]} 31. Bc1 {[%clk 0:00:10]}  h6 {[%clk 0:01:52]} 32. fxg6 {[%clk 0:00:06]}  fxg6 {[%clk 0:01:52]} 33. Be3 {[%clk 0:00:06]}  Rc3 {[%clk 0:01:51]} 34. Rf3 {[%clk 0:00:07]}  Rc2 {[%clk 0:01:43]} 35. R1f2 {[%clk 0:00:06]}  Rfc8 {[%clk 0:01:40]} 36. Kh2 {[%clk 0:00:06]}  Rxf2 {[%clk 0:01:38]} 37. Rxf2 {[%clk 0:00:07]}  Nd7 {[%clk 0:01:38]} 38. Re2 {[%clk 0:00:05]}  Rc3 {[%clk 0:01:37]} 39. Nf1 {[%clk 0:00:05]}  Nf6 {[%clk 0:01:31]} 40. Bf2 {[%clk 0:00:04]}  Kf7 {[%clk 0:01:20]} 41. Bb6 {[%clk 0:00:04]}  a4 {[%clk 0:01:16]} 42. bxa4 {[%clk 0:00:05]}  Ra3 {[%clk 0:01:16]} 43. a5 {[%clk 0:00:05]}  Ke8 {[%clk 0:01:13]} 44. g4 {[%clk 0:00:05]}  Kd7 {[%clk 0:01:13]} 45. Kg2 {[%clk 0:00:06]}  Bd8 {[%clk 0:01:06]} 46. Be3 {[%clk 0:00:05]}  Nxe4 {[%clk 0:01:05]} 47. Bxh6 {[%clk 0:00:05]}  Nc3 {[%clk 0:01:05]} 48. Rb2 {[%clk 0:00:04]}  Nxd5 {[%clk 0:01:04]} 49. Bd2 {[%clk 0:00:03]}  Bxa5 {[%clk 0:01:03]} 50. Kf2 {[%clk 0:00:01]}  Nc3 {[%clk 0:01:01]} 51. Bxc3 {[%clk 0:00:01]}  bxc3 {[%clk 0:01:00]} 52. Rc2 {[%clk 0:00:02]}  d5 {[%clk 0:01:01]} 53. Ke3 {[%clk 0:00:03]}  e4 {[%clk 0:00:59]} 54. Kd4 {[%clk 0:00:02]}  Kd6 {[%clk 0:00:59]} 55. h4 {[%clk 0:00:01]}  Bb6# {[%clk 0:00:59]} 0-1


[Site "https://www.chess.com"]

[Event "Titled Tuesday Blitz March 29 Early 2022"]
[White "Krysa, Leandro"]
[Black "Jarocka, Liwia"]
[WhiteFideId "116807"]
[BlackFideId "21807558"]
[WhiteElo "2490"]
[BlackElo "1896"]
[Result "1-0"]
[Round "05"]
[TimeControl "180+1"]
[Date "2022.03.30"]
[WhiteClock "0:01:03"]
[BlackClock "0:00:31"]

1. e4 {[%clk 0:03:00]}  c5 {[%clk 0:02:54]} 2. Nf3 {[%clk 0:03:00]}  d6 {[%clk 0:02:54]} 3. d4 {[%clk 0:03:00]}  cxd4 {[%clk 0:02:55]} 4. Nxd4 {[%clk 0:03:00]}  Nf6 {[%clk 0:02:56]} 5. Nc3 {[%clk 0:03:01]}  a6 {[%clk 0:02:56]} 6. Rg1 {[%clk 0:03:00]}  e5 {[%clk 0:02:55]} 7. Nb3 {[%clk 0:02:58]}  Be7 {[%clk 0:02:55]} 8. g4 {[%clk 0:02:57]}  Be6 {[%clk 0:02:55]} 9. g5 {[%clk 0:02:56]}  Nfd7 {[%clk 0:02:55]} 10. h4 {[%clk 0:02:53]}  Nc6 {[%clk 0:02:55]} 11. Be3 {[%clk 0:02:50]}  Nc5 {[%clk 0:02:50]} 12. Nxc5 {[%clk 0:02:45]}  dxc5 {[%clk 0:02:50]} 13. Nd5 {[%clk 0:02:44]}  Rc8 {[%clk 0:02:32]} 14. c3 {[%clk 0:02:42]}  b5 {[%clk 0:02:25]} 15. Qd2 {[%clk 0:02:36]}  Bxd5 {[%clk 0:02:21]} 16. exd5 {[%clk 0:02:30]}  Nb8 {[%clk 0:02:21]} 17. O-O-O {[%clk 0:02:28]}  Bd6 {[%clk 0:02:19]} 18. Bh3 {[%clk 0:02:27]}  Rc7 {[%clk 0:02:15]} 19. h5 {[%clk 0:02:28]}  Nd7 {[%clk 0:02:12]} 20. Bf5 {[%clk 0:02:23]}  g6 {[%clk 0:02:04]} 21. Be4 {[%clk 0:02:19]}  Nb6 {[%clk 0:02:03]} 22. hxg6 {[%clk 0:02:08]}  hxg6 {[%clk 0:02:02]} 23. Rh1 {[%clk 0:02:08]}  Rg8 {[%clk 0:01:59]} 24. Rh7 {[%clk 0:02:03]}  Nc4 {[%clk 0:01:57]} 25. Qe2 {[%clk 0:02:00]}  Be7 {[%clk 0:01:45]} 26. d6 {[%clk 0:01:45]}  Bxd6 {[%clk 0:01:16]} 27. Qf3 {[%clk 0:01:38]}  Qe7 {[%clk 0:01:01]} 28. Bd5 {[%clk 0:01:18]}  Nxe3 {[%clk 0:00:55]} 29. Bxf7+ {[%clk 0:01:08]}  Qxf7 {[%clk 0:00:46]} 30. Rxf7 {[%clk 0:01:05]}  Nxd1 {[%clk 0:00:30]} 31. Rxc7 {[%clk 0:01:03]}  Bxc7 {[%clk 0:00:31]} 32. Qc6+ {[%clk 0:01:03]}  Kd8 {[%clk 0:00:31]} 33. Qd5+ {[%clk 0:01:03]} 1-0


[Site "https://www.chess.com"]

[Event "Titled Tuesday Blitz March 29 Early 2022"]
[White "Lauridsen, Jesper Morch"]
[Black "Omariev, Maksim"]
[WhiteFideId "1401890"]
[BlackFideId "4193423"]
[WhiteElo "2311"]
[BlackElo "2514"]
[Result "0-1"]
[Round "05"]
[TimeControl "180+1"]
[Date "2022.03.30"]
[WhiteClock "0:00:01"]
[BlackClock "0:00:04"]

1. e4 {[%clk 0:02:57]}  c5 {[%clk 0:02:58]} 2. c3 {[%clk 0:02:57]}  Nf6 {[%clk 0:02:58]} 3. e5 {[%clk 0:02:57]}  Nd5 {[%clk 0:02:58]} 4. d4 {[%clk 0:02:57]}  cxd4 {[%clk 0:02:58]} 5. Nf3 {[%clk 0:02:58]}  Nc6 {[%clk 0:02:52]} 6. Bc4 {[%clk 0:02:57]}  e6 {[%clk 0:02:50]} 7. cxd4 {[%clk 0:02:49]}  d6 {[%clk 0:02:49]} 8. O-O {[%clk 0:02:47]}  Be7 {[%clk 0:02:48]} 9. Qe2 {[%clk 0:02:47]}  O-O {[%clk 0:02:47]} 10. Rd1 {[%clk 0:02:45]}  a6 {[%clk 0:02:44]} 11. Nc3 {[%clk 0:02:42]}  Nxc3 {[%clk 0:02:38]} 12. bxc3 {[%clk 0:02:42]}  dxe5 {[%clk 0:02:35]} 13. dxe5 {[%clk 0:02:40]}  Qc7 {[%clk 0:02:35]} 14. Qe4 {[%clk 0:02:34]}  b5 {[%clk 0:02:15]} 15. Bd3 {[%clk 0:02:30]}  g6 {[%clk 0:02:16]} 16. Bh6 {[%clk 0:02:29]}  Rd8 {[%clk 0:02:14]} 17. Qf4 {[%clk 0:02:07]}  Bb7 {[%clk 0:02:01]} 18. Be4 {[%clk 0:02:06]}  f5 {[%clk 0:01:42]} 19. exf6 {[%clk 0:01:57]}  Qxf4 {[%clk 0:01:43]} 20. Bxf4 {[%clk 0:01:46]}  Bxf6 {[%clk 0:01:43]} 21. Bg5 {[%clk 0:01:35]}  Kg7 {[%clk 0:01:27]} 22. h4 {[%clk 0:01:34]}  Bxc3 {[%clk 0:01:02]} 23. Bxd8 {[%clk 0:01:02]}  Bxa1 {[%clk 0:00:59]} 24. Rd7+ {[%clk 0:01:01]}  Kg8 {[%clk 0:00:57]} 25. Bg5 {[%clk 0:00:33]}  Rb8 {[%clk 0:00:28]} 26. Bf4 {[%clk 0:00:32]}  e5 {[%clk 0:00:19]} 27. Bd5+ {[%clk 0:00:28]}  Kh8 {[%clk 0:00:18]} 28. Bh6 {[%clk 0:00:24]}  e4 {[%clk 0:00:18]} 29. Ng5 {[%clk 0:00:23]}  Nd8 {[%clk 0:00:04]} 30. Bxb7 {[%clk 0:00:12]}  Nxb7 {[%clk 0:00:03]} 31. Rxh7+ {[%clk 0:00:11]}  Kg8 {[%clk 0:00:03]} 32. Rc7 {[%clk 0:00:10]}  Nd6 {[%clk 0:00:03]} 33. Rd7 {[%clk 0:00:09]}  Nf5 {[%clk 0:00:03]} 34. Nxe4 {[%clk 0:00:06]}  Nxh6 {[%clk 0:00:03]} 35. Rd6 {[%clk 0:00:06]}  Kg7 {[%clk 0:00:02]} 36. Rxa6 {[%clk 0:00:06]}  Nf7 {[%clk 0:00:02]} 37. Ra7 {[%clk 0:00:06]}  Re8 {[%clk 0:00:02]} 38. Ng5 {[%clk 0:00:03]}  Re1+ {[%clk 0:00:01]} 39. Kh2 {[%clk 0:00:02]}  Be5+ {[%clk 0:00:02]} 40. g3 {[%clk 0:00:03]}  Re2 {[%clk 0:00:01]} 41. Rxf7+ {[%clk 0:00:02]}  Kg8 {[%clk 0:00:02]} 42. Rf3 {[%clk 0:00:02]}  Rxa2 {[%clk 0:00:02]} 43. Kg2 {[%clk 0:00:03]}  b4 {[%clk 0:00:02]} 44. Rd3 {[%clk 0:00:03]}  Bc3 {[%clk 0:00:03]} 45. Nf3 {[%clk 0:00:03]}  Ra3 {[%clk 0:00:02]} 46. g4 {[%clk 0:00:03]}  Kg7 {[%clk 0:00:03]} 47. h5 {[%clk 0:00:04]}  Bf6 {[%clk 0:00:03]} 48. Rd7+ {[%clk 0:00:03]}  Kg8 {[%clk 0:00:02]} 49. h6 {[%clk 0:00:03]}  b3 {[%clk 0:00:02]} 50. g5 {[%clk 0:00:04]}  Bc3 {[%clk 0:00:01]} 51. Rb7 {[%clk 0:00:04]}  b2 {[%clk 0:00:02]} 52. Kh2 {[%clk 0:00:03]}  Ra2 {[%clk 0:00:02]} 53. Kg2 {[%clk 0:00:03]}  Ra1 {[%clk 0:00:02]} 54. Rb3 {[%clk 0:00:02]}  b1=Q {[%clk 0:00:03]} 55. Rxb1 {[%clk 0:00:02]}  Rxb1 {[%clk 0:00:03]} 56. Nh4 {[%clk 0:00:02]}  Kh7 {[%clk 0:00:02]} 57. f4 {[%clk 0:00:02]}  Rb4 {[%clk 0:00:02]} 58. Kf3 {[%clk 0:00:03]}  Bd2 {[%clk 0:00:03]} 59. Ng2 {[%clk 0:00:02]}  Bc1 {[%clk 0:00:03]} 60. Kg4 {[%clk 0:00:01]}  Rb3 {[%clk 0:00:02]} 61. f5 {[%clk 0:00:01]}  Rb4+ {[%clk 0:00:03]} 62. Kf3 {[%clk 0:00:01]}  gxf5 {[%clk 0:00:04]} 63. Ne1 {[%clk 0:00:01]}  Bxg5 {[%clk 0:00:04]} 64. Nd3 {[%clk 0:00:01]}  Rb3 {[%clk 0:00:04]} 0-1


[Site "https://www.chess.com"]

[Event "Titled Tuesday Blitz March 29 Early 2022"]
[White "Le, Tuan Minh"]
[Black "Brodowski, Piotr"]
[WhiteFideId "12401153"]
[BlackFideId "1124480"]
[WhiteElo "2450"]
[BlackElo "2422"]
[Result "1-0"]
[Round "05"]
[TimeControl "180+1"]
[Date "2022.03.29"]
[WhiteClock "0:00:14"]
[BlackClock "0:00:08"]

1. d4 {[%clk 0:03:00]}  c5 {[%clk 0:02:59]} 2. c3 {[%clk 0:02:58]}  Qa5 {[%clk 0:02:55]} 3. d5 {[%clk 0:02:37]}  Nf6 {[%clk 0:02:46]} 4. g3 {[%clk 0:02:28]}  g6 {[%clk 0:02:45]} 5. Bg2 {[%clk 0:02:28]}  d6 {[%clk 0:02:45]} 6. Nf3 {[%clk 0:02:28]}  Bg7 {[%clk 0:02:45]} 7. O-O {[%clk 0:02:29]}  O-O {[%clk 0:02:45]} 8. a4 {[%clk 0:02:27]}  Bf5 {[%clk 0:02:30]} 9. Nfd2 {[%clk 0:02:13]}  Qc7 {[%clk 0:02:17]} 10. Na3 {[%clk 0:02:12]}  Qc8 {[%clk 0:01:58]} 11. Re1 {[%clk 0:02:10]}  Bh3 {[%clk 0:01:58]} 12. Bh1 {[%clk 0:02:10]}  Nbd7 {[%clk 0:01:58]} 13. Nac4 {[%clk 0:02:08]}  b6 {[%clk 0:01:57]} 14. e4 {[%clk 0:02:08]}  Rb8 {[%clk 0:01:56]} 15. Nf3 {[%clk 0:01:56]}  Qa6 {[%clk 0:01:34]} 16. b3 {[%clk 0:01:39]}  b5 {[%clk 0:01:18]} 17. Ncd2 {[%clk 0:01:23]}  h6 {[%clk 0:01:14]} 18. Qc2 {[%clk 0:01:16]}  Rfc8 {[%clk 0:01:07]} 19. Bb2 {[%clk 0:01:15]}  Ng4 {[%clk 0:00:43]} 20. axb5 {[%clk 0:01:11]}  Qxb5 {[%clk 0:00:43]} 21. c4 {[%clk 0:01:05]}  Qb6 {[%clk 0:00:41]} 22. Bxg7 {[%clk 0:00:58]}  Kxg7 {[%clk 0:00:42]} 23. Ra4 {[%clk 0:00:57]}  f6 {[%clk 0:00:41]} 24. Rea1 {[%clk 0:00:57]}  Rb7 {[%clk 0:00:40]} 25. Ne1 {[%clk 0:00:54]}  Nge5 {[%clk 0:00:34]} 26. Bg2 {[%clk 0:00:53]}  Bxg2 {[%clk 0:00:34]} 27. Nxg2 {[%clk 0:00:54]}  g5 {[%clk 0:00:31]} 28. Ne3 {[%clk 0:00:54]}  Nf8 {[%clk 0:00:27]} 29. Qd1 {[%clk 0:00:52]}  Nf7 {[%clk 0:00:12]} 30. Qh5 {[%clk 0:00:51]}  Ng6 {[%clk 0:00:12]} 31. f4 {[%clk 0:00:41]}  Ra8 {[%clk 0:00:10]} 32. Kh1 {[%clk 0:00:25]}  Qc7 {[%clk 0:00:10]} 33. Ra6 {[%clk 0:00:20]}  Qd7 {[%clk 0:00:09]} 34. Nf5+ {[%clk 0:00:19]}  Kh7 {[%clk 0:00:09]} 35. R1a3 {[%clk 0:00:17]}  e6 {[%clk 0:00:08]} 36. Rxd6 {[%clk 0:00:14]} 1-0


[Site "https://www.chess.com"]

[Event "Titled Tuesday Blitz March 29 Early 2022"]
[White "Legenia, Artem"]
[Black "Hartikainen, Jarmo"]
[WhiteFideId "14136945"]
[BlackFideId "503134"]
[WhiteElo "1936"]
[BlackElo "2063"]
[Result "1-0"]
[Round "05"]
[TimeControl "180+1"]
[Date "2022.03.30"]
[WhiteClock "0:01:17"]
[BlackClock "0:00:33"]

1. e4 {[%clk 0:03:00]}  c5 {[%clk 0:02:59]} 2. Nf3 {[%clk 0:02:49]}  Nc6 {[%clk 0:02:58]} 3. c3 {[%clk 0:02:44]}  d5 {[%clk 0:02:57]} 4. exd5 {[%clk 0:02:43]}  Qxd5 {[%clk 0:02:57]} 5. d4 {[%clk 0:02:44]}  cxd4 {[%clk 0:02:57]} 6. cxd4 {[%clk 0:02:44]}  Bg4 {[%clk 0:02:56]} 7. Nc3 {[%clk 0:02:43]}  Bxf3 {[%clk 0:02:56]} 8. Nxd5 {[%clk 0:02:34]}  Bxd1 {[%clk 0:02:55]} 9. Nc7+ {[%clk 0:02:32]}  Kd8 {[%clk 0:02:55]} 10. Nxa8 {[%clk 0:02:31]}  Bh5 {[%clk 0:02:53]} 11. Bf4 {[%clk 0:02:30]}  e5 {[%clk 0:02:47]} 12. dxe5 {[%clk 0:02:27]}  Bb4+ {[%clk 0:02:46]} 13. Bd2 {[%clk 0:02:27]}  Bxd2+ {[%clk 0:02:45]} 14. Kxd2 {[%clk 0:02:27]}  Nge7 {[%clk 0:02:37]} 15. h3 {[%clk 0:02:14]}  Kd7 {[%clk 0:02:26]} 16. g4 {[%clk 0:02:14]}  Bg6 {[%clk 0:02:26]} 17. Bg2 {[%clk 0:02:10]}  Rxa8 {[%clk 0:02:16]} 18. f4 {[%clk 0:02:10]}  f5 {[%clk 0:02:03]} 19. Ke3 {[%clk 0:02:06]}  Ke6 {[%clk 0:01:59]} 20. Rhd1 {[%clk 0:02:01]}  Rd8 {[%clk 0:01:46]} 21. Rxd8 {[%clk 0:02:00]}  Nxd8 {[%clk 0:01:47]} 22. Rd1 {[%clk 0:01:59]}  Nec6 {[%clk 0:01:38]} 23. Rd6+ {[%clk 0:01:55]}  Ke7 {[%clk 0:01:37]} 24. a3 {[%clk 0:01:50]}  Nf7 {[%clk 0:01:13]} 25. Rd1 {[%clk 0:01:48]}  Nfd8 {[%clk 0:01:09]} 26. b4 {[%clk 0:01:46]}  a6 {[%clk 0:01:08]} 27. Bf1 {[%clk 0:01:44]}  b5 {[%clk 0:00:59]} 28. Bd3 {[%clk 0:01:37]}  fxg4 {[%clk 0:00:43]} 29. Bxg6 {[%clk 0:01:34]}  hxg6 {[%clk 0:00:43]} 30. hxg4 {[%clk 0:01:34]}  g5 {[%clk 0:00:38]} 31. Rd6 {[%clk 0:01:20]}  gxf4+ {[%clk 0:00:36]} 32. Kxf4 {[%clk 0:01:20]}  Ne6+ {[%clk 0:00:36]} 33. Kf5 {[%clk 0:01:20]}  Ncd4+ {[%clk 0:00:36]} 34. Kg6 {[%clk 0:01:19]}  Nf3 {[%clk 0:00:34]} 35. Rxa6 {[%clk 0:01:18]}  Nxe5+ {[%clk 0:00:34]} 36. Kf5 {[%clk 0:01:18]}  g6+ {[%clk 0:00:33]} 37. Kxe5 {[%clk 0:01:17]} 1-0


[Site "https://www.chess.com"]

[Event "Titled Tuesday Blitz March 29 Early 2022"]
[White "Lehtosaari, Mauri"]
[Black "Dejmek, Mark"]
[WhiteFideId "501999"]
[BlackFideId "2017628"]
[WhiteElo "2508"]
[BlackElo "2262"]
[Result "1-0"]
[Round "05"]
[TimeControl "180+1"]
[Date "2022.03.30"]
[WhiteClock "0:00:19"]
[BlackClock "0:00:06"]

1. d4 {[%clk 0:02:58]}  Nf6 {[%clk 0:02:58]} 2. Nf3 {[%clk 0:02:56]}  e6 {[%clk 0:02:57]} 3. Bg5 {[%clk 0:02:47]}  h6 {[%clk 0:02:48]} 4. Bh4 {[%clk 0:02:47]}  c5 {[%clk 0:02:35]} 5. e3 {[%clk 0:02:46]}  Qb6 {[%clk 0:02:31]} 6. Nbd2 {[%clk 0:02:36]}  cxd4 {[%clk 0:02:23]} 7. exd4 {[%clk 0:02:28]}  d5 {[%clk 0:02:03]} 8. Bd3 {[%clk 0:02:22]}  Be7 {[%clk 0:02:01]} 9. O-O {[%clk 0:02:20]}  O-O {[%clk 0:02:01]} 10. Rb1 {[%clk 0:02:16]}  Nc6 {[%clk 0:01:57]} 11. c3 {[%clk 0:02:16]}  Bd7 {[%clk 0:01:44]} 12. Ne5 {[%clk 0:02:10]}  g5 {[%clk 0:01:09]} 13. Bg3 {[%clk 0:02:07]}  Nxe5 {[%clk 0:01:08]} 14. Bxe5 {[%clk 0:01:31]}  Bb5 {[%clk 0:01:05]} 15. Bxb5 {[%clk 0:01:07]}  Qxb5 {[%clk 0:01:05]} 16. Qf3 {[%clk 0:01:06]}  Nd7 {[%clk 0:00:51]} 17. Bg3 {[%clk 0:01:01]}  f5 {[%clk 0:00:47]} 18. Be5 {[%clk 0:00:43]}  Nxe5 {[%clk 0:00:37]} 19. dxe5 {[%clk 0:00:44]}  Qa4 {[%clk 0:00:31]} 20. a3 {[%clk 0:00:41]}  Qg4 {[%clk 0:00:29]} 21. Qxg4 {[%clk 0:00:33]}  fxg4 {[%clk 0:00:29]} 22. Rfe1 {[%clk 0:00:28]}  Bc5 {[%clk 0:00:28]} 23. Re2 {[%clk 0:00:28]}  Rf5 {[%clk 0:00:27]} 24. Nb3 {[%clk 0:00:28]}  Bb6 {[%clk 0:00:22]} 25. g3 {[%clk 0:00:28]}  Raf8 {[%clk 0:00:21]} 26. Nd4 {[%clk 0:00:28]}  Bxd4 {[%clk 0:00:21]} 27. cxd4 {[%clk 0:00:29]}  Rf3 {[%clk 0:00:21]} 28. Rd2 {[%clk 0:00:25]}  Rb3 {[%clk 0:00:17]} 29. Rc1 {[%clk 0:00:23]}  Rff3 {[%clk 0:00:17]} 30. Rc7 {[%clk 0:00:21]}  a5 {[%clk 0:00:13]} 31. Re7 {[%clk 0:00:20]}  Rfd3 {[%clk 0:00:11]} 32. Rc2 {[%clk 0:00:19]}  Rxd4 {[%clk 0:00:06]} 33. Rc8# {[%clk 0:00:19]} 1-0


[Site "https://www.chess.com"]

[Event "Titled Tuesday Blitz March 29 Early 2022"]
[White "Lewtak, Damian"]
[Black "Barrientos, Sergio E"]
[WhiteFideId "1141724"]
[BlackFideId "4401824"]
[WhiteElo "2362"]
[BlackElo "2397"]
[Result "0-1"]
[Round "05"]
[TimeControl "180+1"]
[Date "2022.03.29"]
[WhiteClock "0:00:13"]
[BlackClock "0:00:13"]

1. d4 {[%clk 0:03:00]}  Nf6 {[%clk 0:02:59]} 2. c4 {[%clk 0:02:59]}  g6 {[%clk 0:02:57]} 3. Nd2 {[%clk 0:03:00]}  d5 {[%clk 0:02:57]} 4. Ngf3 {[%clk 0:03:00]}  Bg7 {[%clk 0:02:57]} 5. e3 {[%clk 0:03:00]}  O-O {[%clk 0:02:57]} 6. b3 {[%clk 0:03:01]}  b6 {[%clk 0:02:57]} 7. Bb2 {[%clk 0:03:01]}  Bb7 {[%clk 0:02:56]} 8. Be2 {[%clk 0:03:00]}  Nbd7 {[%clk 0:02:54]} 9. O-O {[%clk 0:03:00]}  dxc4 {[%clk 0:02:53]} 10. Nxc4 {[%clk 0:03:00]}  c5 {[%clk 0:02:50]} 11. Nce5 {[%clk 0:02:57]}  cxd4 {[%clk 0:02:42]} 12. Bxd4 {[%clk 0:02:55]}  Rc8 {[%clk 0:02:37]} 13. Rc1 {[%clk 0:02:54]}  Nxe5 {[%clk 0:02:22]} 14. Bxe5 {[%clk 0:02:55]}  Rxc1 {[%clk 0:02:21]} 15. Qxc1 {[%clk 0:02:54]}  Qa8 {[%clk 0:02:11]} 16. Qb2 {[%clk 0:02:51]}  Rd8 {[%clk 0:02:06]} 17. Rd1 {[%clk 0:02:47]}  h6 {[%clk 0:01:57]} 18. h3 {[%clk 0:02:45]}  Rxd1+ {[%clk 0:01:48]} 19. Bxd1 {[%clk 0:02:44]}  Qc8 {[%clk 0:01:48]} 20. Be2 {[%clk 0:02:35]}  Qf5 {[%clk 0:01:46]} 21. a4 {[%clk 0:02:28]}  g5 {[%clk 0:01:42]} 22. Qd4 {[%clk 0:02:00]}  Qb1+ {[%clk 0:01:24]} 23. Kh2 {[%clk 0:01:38]}  Qxb3 {[%clk 0:01:23]} 24. Bc4 {[%clk 0:01:38]}  Qa3 {[%clk 0:01:09]} 25. Qd8+ {[%clk 0:01:22]}  Bf8 {[%clk 0:01:08]} 26. Bd4 {[%clk 0:01:17]}  Qxa4 {[%clk 0:00:45]} 27. Ne5 {[%clk 0:01:17]}  Qb4 {[%clk 0:00:27]} 28. Bxf7+ {[%clk 0:01:10]}  Kg7 {[%clk 0:00:27]} 29. Qc7 {[%clk 0:00:41]}  Be4 {[%clk 0:00:21]} 30. Ba2 {[%clk 0:00:36]}  Qd6 {[%clk 0:00:19]} 31. Qc3 {[%clk 0:00:34]}  Bd5 {[%clk 0:00:18]} 32. Bb1 {[%clk 0:00:34]}  Kg8 {[%clk 0:00:16]} 33. f3 {[%clk 0:00:31]}  Nd7 {[%clk 0:00:16]} 34. e4 {[%clk 0:00:30]}  Bg7 {[%clk 0:00:15]} 35. Qc8+ {[%clk 0:00:26]}  Nf8 {[%clk 0:00:15]} 36. Qf5 {[%clk 0:00:24]}  Be6 {[%clk 0:00:13]} 37. Qg4 {[%clk 0:00:13]}  Bxg4 {[%clk 0:00:13]} 0-1


[Site "https://www.chess.com"]

[Event "Titled Tuesday Blitz March 29 Early 2022"]
[White "Majdan, Joanna"]
[Black "Secer, Ata"]
[WhiteFideId "1121979"]
[BlackFideId "6303293"]
[WhiteElo "2234"]
[BlackElo "2282"]
[Result "1-0"]
[Round "05"]
[TimeControl "180+1"]
[Date "2022.03.30"]
[WhiteClock "0:00:06"]
[BlackClock "0:00:01"]

1. e4 {[%clk 0:02:57]}  c5 {[%clk 0:02:58]} 2. c3 {[%clk 0:02:55]}  Nf6 {[%clk 0:02:58]} 3. e5 {[%clk 0:02:55]}  Nd5 {[%clk 0:02:58]} 4. Nf3 {[%clk 0:02:55]}  e6 {[%clk 0:02:58]} 5. d4 {[%clk 0:02:51]}  cxd4 {[%clk 0:02:59]} 6. cxd4 {[%clk 0:02:52]}  d6 {[%clk 0:02:59]} 7. Bc4 {[%clk 0:02:47]}  Be7 {[%clk 0:02:58]} 8. O-O {[%clk 0:02:47]}  O-O {[%clk 0:02:57]} 9. Qe2 {[%clk 0:02:44]}  b6 {[%clk 0:02:57]} 10. Rd1 {[%clk 0:02:42]}  Bb7 {[%clk 0:02:56]} 11. Bb3 {[%clk 0:02:37]}  dxe5 {[%clk 0:02:49]} 12. Nxe5 {[%clk 0:02:36]}  Nd7 {[%clk 0:02:49]} 13. Nc3 {[%clk 0:02:26]}  Nxc3 {[%clk 0:02:45]} 14. bxc3 {[%clk 0:02:25]}  Nxe5 {[%clk 0:02:45]} 15. Qxe5 {[%clk 0:02:24]}  Bd6 {[%clk 0:02:41]} 16. Qh5 {[%clk 0:02:22]}  g6 {[%clk 0:02:39]} 17. Qh6 {[%clk 0:02:21]}  Qc7 {[%clk 0:02:29]} 18. Bg5 {[%clk 0:02:20]}  Rfe8 {[%clk 0:02:23]} 19. Rd3 {[%clk 0:02:14]}  Bf8 {[%clk 0:02:23]} 20. Qh4 {[%clk 0:02:14]}  Be7 {[%clk 0:02:13]} 21. Rh3 {[%clk 0:02:09]}  Bxg5 {[%clk 0:02:12]} 22. Qxg5 {[%clk 0:02:08]}  Rad8 {[%clk 0:01:30]} 23. Re1 {[%clk 0:02:02]}  Bd5 {[%clk 0:01:26]} 24. Bxd5 {[%clk 0:01:48]}  exd5 {[%clk 0:01:24]} 25. Re5 {[%clk 0:01:16]}  Rxe5 {[%clk 0:01:00]} 26. dxe5 {[%clk 0:01:16]}  Re8 {[%clk 0:01:00]} 27. Re3 {[%clk 0:00:41]}  d4 {[%clk 0:00:58]} 28. Re1 {[%clk 0:00:28]}  dxc3 {[%clk 0:00:53]} 29. h4 {[%clk 0:00:25]}  c2 {[%clk 0:00:51]} 30. Rc1 {[%clk 0:00:15]}  Rxe5 {[%clk 0:00:37]} 31. Qd2 {[%clk 0:00:13]}  Rc5 {[%clk 0:00:30]} 32. h5 {[%clk 0:00:13]}  gxh5 {[%clk 0:00:20]} 33. g3 {[%clk 0:00:13]}  h4 {[%clk 0:00:17]} 34. gxh4 {[%clk 0:00:13]}  Kg7 {[%clk 0:00:16]} 35. Kh1 {[%clk 0:00:12]}  h6 {[%clk 0:00:16]} 36. Rg1+ {[%clk 0:00:11]}  Kh7 {[%clk 0:00:15]} 37. Qd4 {[%clk 0:00:08]}  Qe5 {[%clk 0:00:12]} 38. Qg4 {[%clk 0:00:07]}  Qd5+ {[%clk 0:00:02]} 39. f3 {[%clk 0:00:07]}  c1=Q {[%clk 0:00:01]} 40. Qg8# {[%clk 0:00:06]} 1-0


[Site "https://www.chess.com"]